bitfinex-derivatives/quotes_BTCF0:USTF0_20241103
["timestamp","ask_amount","ask_price","bid_price","bid_amount"]
[1730649246165,0.50512,68227.0,68224.0,0.001]
[1730649246656,0.50512,68227.0,68214.0,0.3608]
[1730649246862,0.14432,68227.0,68219.0,0.073318]
[1730649247067,0.14432,68227.0,68214.0,0.3608]
[1730649247371,0.14432,68227.0,68221.0,0.073316]
[1730649247567,0.21763,68227.0,68216.0,0.073321]
[1730649247865,0.21763,68227.0,68214.0,0.3608]
[1730649247866,0.14432,68227.0,68221.0,0.073316]
[1730649248058,0.14432,68227.0,68221.0,0.074316]
[1730649248463,0.14432,68227.0,68221.0,0.001]
[1730649248659,0.073312,68225.0,68221.0,0.001]
[1730649248970,0.14432,68227.0,68217.0,0.07332]
[1730649248971,0.21863,68227.0,68217.0,0.07332]
[1730649249657,0.21863,68227.0,68221.0,0.001]
[1730649249866,0.3608,68224.0,68221.0,0.001]
[1730649250267,0.073315,68222.0,68221.0,0.001]
[1730649250567,0.073315,68222.0,68205.0,0.3608]
[1730649250769,0.3608,68206.0,68192.0,0.3608]
[1730649251071,0.3608,68206.0,68203.0,0.073335]
[1730649251261,0.14432,68212.0,68200.0,0.073339]
[1730649251580,0.3608,68221.0,68212.0,0.073326]
[1730649251768,0.3608,68221.0,68217.0,0.07332]
[1730649252068,0.3608,68221.0,68220.0,0.073317]
[1730649252573,0.3608,68221.0,68217.0,0.001]
[1730649252869,0.3618,68221.0,68217.0,0.073321]
[1730649253073,0.3618,68221.0,68220.0,0.073317]
[1730649253262,0.3618,68221.0,68213.0,0.0306]
[1730649253465,0.073319,68219.0,68213.0,0.0306]
[1730649253665,0.3608,68214.0,68213.0,0.0306]
[1730649254065,0.14432,68220.0,68213.0,0.0306]
[1730649254372,0.3608,68215.0,68197.0,0.073342]
[1730649254564,0.3608,68215.0,68208.0,0.073329]
[1730649254772,0.3608,68215.0,68202.0,0.0333]
[1730649254967,0.3608,68209.0,68202.0,0.0333]
[1730649255167,0.14432,68220.0,68202.0,0.0333]
[1730649255168,0.3608,68203.0,68202.0,0.0333]
[1730649255368,0.14432,68207.0,68191.0,0.03489959]
[1730649255568,0.14432,68207.0,68205.0,0.002]
[1730649255876,0.217652,68207.0,68205.0,0.002]
[1730649256171,0.14432,68207.0,68205.0,0.002]
[1730649256374,0.14432,68207.0,68202.0,0.002]
[1730649256566,0.3608,68205.0,68202.0,0.002]
[1730649257476,0.073336,68203.0,68202.0,0.002]
[1730649258075,0.43988,68203.0,68193.0,0.3608]
[1730649258273,0.073337,68202.0,68193.0,0.434146]
[1730649258963,0.004,68203.0,68202.0,0.073337]
[1730649259580,0.50512,68215.0,68202.0,0.073337]
[1730649259767,0.04919144,68214.0,68213.0,0.073325]
[1730649260284,0.04919144,68214.0,68209.0,0.073329]
[1730649260469,0.04919144,68213.0,68203.0,0.0302]
[1730649260774,0.14432,68224.0,68207.0,0.3608]
[1730649260977,0.04932517,68223.0,68217.0,0.07332]
[1730649261178,0.04932517,68222.0,68218.0,0.073319]
[1730649261482,0.04932517,68222.0,68207.0,0.3608]
[1730649261483,0.04932517,68221.0,68220.0,0.073317]
[1730649261776,0.04946989,68223.0,68215.0,0.073323]
[1730649261979,0.00219983,68230.0,68229.0,0.073308]
[1730649262175,0.00219983,68230.0,68229.0,0.434108]
[1730649262768,0.00219983,68230.0,68229.0,0.073308]
[1730649264673,0.00919983,68230.0,68229.0,0.074308]
[1730649265074,0.5086,68243.0,68229.0,0.074308]
[1730649265279,0.05060451,68242.0,68241.0,0.073295]
[1730649265674,0.3608,68251.0,68243.0,0.073293]
[1730649265985,0.05090514,68250.0,68239.0,0.3608]
[1730649266191,0.3608,68251.0,68243.0,0.073292]
[1730649266483,0.05106697,68250.0,68243.0,0.073292]
[1730649266683,0.05106697,68249.0,68244.0,0.073291]
[1730649266982,0.05106697,68248.0,68242.0,0.073293]
[1730649267388,0.05106697,68248.0,68240.0,0.073296]
[1730649267677,0.07329,68246.0,68239.0,0.3608]
[1730649267877,0.07329,68246.0,68232.0,0.3608]
[1730649267878,0.3608,68243.0,68232.0,0.3608]
[1730649268088,0.073297,68240.0,68232.0,0.3608]
[1730649268376,0.1478,68239.0,68232.0,0.434104]
[1730649268583,0.00096,68249.0,68235.0,0.0733]
[1730649268584,0.1478,68249.0,68235.0,0.0733]
[1730649268774,0.1478,68249.0,68244.0,0.073291]
[1730649268775,0.05096068,68248.0,68244.0,0.073291]
[1730649269090,0.05096068,68247.0,68245.0,0.07329]
[1730649269279,0.1478,68249.0,68246.0,0.073288]
[1730649269280,0.14776,68249.0,68246.0,0.073288]
[1730649269491,0.14776,68249.0,68247.0,0.073288]
[1730649270278,0.14776,68249.0,68248.0,0.073287]
[1730649270678,0.14776,68250.0,68248.0,0.073287]
[1730649270884,0.50856,68251.0,68250.0,0.073285]
[1730649271074,0.55961252,68251.0,68250.0,0.073285]
[1730649271383,0.50856,68251.0,68250.0,0.073285]
[1730649271775,0.3608,68251.0,68250.0,0.073285]
[1730649272382,0.02119515,68253.0,68251.0,0.073284]
[1730649272686,0.14776,68256.0,68251.0,0.073284]
[1730649272869,0.05104013,68255.0,68251.0,0.073284]
[1730649273074,0.02120004,68256.0,68250.0,0.3608]
[1730649273273,0.3608,68264.0,68260.0,0.073274]
[1730649273481,0.05132314,68263.0,68260.0,0.073274]
[1730649273682,0.00219836,68266.0,68259.0,0.3608]
[1730649273889,0.02320378,68266.0,68260.0,0.073274]
[1730649274086,0.00219836,68266.0,68260.0,0.073274]
[1730649274272,0.00219836,68266.0,68265.0,0.434069]
[1730649275686,0.01019836,68266.0,68265.0,0.434069]
[1730649276387,0.37099836,68266.0,68260.0,0.073274]
[1730649276680,0.37099836,68266.0,68259.0,0.3110484]
[1730649277188,0.434074,68260.0,68259.0,0.001]
[1730649277376,0.3608,68260.0,68247.0,0.3608]
[1730649277578,0.073283,68252.0,68247.0,0.3608]
[1730649277782,0.073283,68252.0,68240.0,0.0333]
[1730649277783,0.434084,68252.0,68240.0,0.0333]
[1730649277992,0.3608,68252.0,68240.0,0.0333]
[1730649278171,0.073289,68247.0,68240.0,0.0333]
[1730649278488,0.7216,68241.0,68211.0,0.3608]
[1730649278679,0.7216,68241.0,68203.0,0.3608]
[1730649278680,0.3608,68214.0,68206.0,0.073332]
[1730649278873,0.3608,68214.0,68204.0,0.0989]
[1730649279385,0.3608,68214.0,68203.0,0.3608]
[1730649279691,0.073334,68205.0,68196.0,0.3608]
[1730649279887,0.073336,68203.0,68188.0,0.3608]
[1730649280091,0.36176,68214.0,68196.0,0.3608]
[1730649280280,0.36176,68214.0,68213.0,0.073325]
[1730649280582,0.3608,68228.0,68219.0,0.073318]
[1730649280792,0.3608,68228.0,68221.0,0.073316]
[1730649280976,0.3608,68228.0,68222.0,0.0325]
[1730649282178,0.3628,68228.0,68222.0,0.0325]
[1730649282579,0.3628,68228.0,68219.0,0.3608]
[1730649282981,0.073314,68223.0,68219.0,0.3608]
[1730649283387,0.3628,68228.0,68219.0,0.3608]
[1730649283600,0.436109,68228.0,68219.0,0.3608]
[1730649283783,0.440109,68228.0,68219.0,0.3608]
[1730649283985,0.440109,68228.0,68222.0,0.00371905]
[1730649284385,0.14776,68227.0,68222.0,0.00371905]
[1730649284684,0.221071,68227.0,68222.0,0.00371905]
[1730649285388,0.221071,68227.0,68222.0,0.00471905]
[1730649285589,0.14776,68227.0,68222.0,0.00471905]
[1730649285889,0.073314,68223.0,68222.0,0.00471905]
[1730649286394,0.513034,68223.0,68222.0,0.00471905]
[1730649286612,0.3608,68225.0,68222.0,0.00471905]
[1730649286984,0.3608,68225.0,68222.0,0.00371905]
[1730649287297,0.007,68227.0,68222.0,0.36551905]
[1730649287988,0.15000011,68232.0,68222.0,0.36651905]
[1730649288187,0.3608,68237.0,68222.0,0.36651905]
[1730649288188,0.1478,68233.0,68222.0,0.36651905]
[1730649288794,0.073308,68229.0,68222.0,0.36851905]
[1730649289588,0.3608,68230.0,68222.0,0.36851905]
[1730649289791,0.073311,68226.0,68222.0,0.36851905]
[1730649290098,0.073314,68223.0,68222.0,0.36851905]
[1730649290296,0.073314,68223.0,68222.0,0.00371905]
[1730649290492,0.513034,68223.0,68222.0,0.00371905]
[1730649290795,0.873834,68223.0,68222.0,0.00371905]
[1730649291787,0.434114,68223.0,68222.0,0.00371905]
[1730649291989,0.873834,68223.0,68222.0,0.00371905]
[1730649292197,0.3608,68223.0,68222.0,0.00371905]
[1730649292384,1.021634,68223.0,68222.0,0.00371905]
[1730649292589,1.04346939,68223.0,68222.0,0.00371905]
[1730649293394,1.05046939,68223.0,68222.0,0.00471905]
[1730649294089,1.05046939,68223.0,68218.0,0.01279653]
[1730649294399,0.75043539,68223.0,68209.0,0.01162609]
[1730649294695,0.3608,68217.0,68210.0,0.04381278]
[1730649294895,0.38263539,68223.0,68210.0,0.04381278]
[1730649294896,0.02979539,68223.0,68210.0,0.04381278]
[1730649295100,0.00771214,68223.0,68222.0,0.3608]
[1730649295299,0.00135102,68225.0,68224.0,0.073313]
[1730649295598,0.00368517,68230.0,68226.0,0.073311]
[1730649295802,0.00368517,68230.0,68224.0,0.3608]
[1730649296095,0.00368517,68230.0,68229.0,0.073308]
[1730649296988,0.00623268,68239.0,68238.0,0.073298]
[1730649297192,0.00623268,68239.0,68224.0,0.3608]
[1730649297193,0.00623268,68239.0,68233.0,0.3608]
[1730649297487,0.00623268,68239.0,68238.0,0.073298]
[1730649298404,0.00923268,68239.0,68233.0,0.3608]
[1730649298596,0.3608,68237.0,68224.0,0.36299844]
[1730649298796,0.3608,68237.0,68229.0,0.073307]
[1730649298990,0.3608,68237.0,68225.0,0.0302]
[1730649299195,0.00923268,68239.0,68236.0,0.073299]
[1730649299497,0.00923268,68239.0,68226.0,0.21859809]
[1730649299705,0.00923268,68239.0,68225.0,0.0302]
[1730649299896,0.00923268,68239.0,68236.0,0.0733]
[1730649300096,0.00823268,68239.0,68234.0,0.073302]
[1730649300303,0.00823268,68239.0,68235.0,0.073301]
[1730649300606,0.00823268,68239.0,68230.0,0.3608]
[1730649300607,0.00823268,68239.0,68238.0,0.434098]
[1730649300808,0.00725606,68241.0,68238.0,0.3608]
[1730649301398,0.073297,68239.0,68238.0,0.3608]
[1730649301593,0.00725606,68241.0,68238.0,0.3608]
[1730649301906,0.073297,68239.0,68230.0,0.3608]
[1730649302412,0.15476,68238.0,68230.0,0.3608]
[1730649302905,0.073299,68237.0,68230.0,0.3608]
[1730649303103,0.3608,68233.0,68225.0,0.0302]
[1730649303810,0.073307,68230.0,68225.0,0.0302]
[1730649304001,0.3608,68233.0,68224.0,0.00219844]
[1730649304311,0.073312,68225.0,68224.0,0.00219844]
[1730649304614,0.073307,68230.0,68225.0,0.001]
[1730649304799,0.07331,68227.0,68225.0,0.001]
[1730649305407,0.873831,68226.0,68225.0,0.001]
[1730649305608,0.073311,68226.0,68225.0,0.001]
[1730649305813,0.873831,68226.0,68225.0,0.001]
[1730649306308,0.80052,68226.0,68216.0,0.01667324]
[1730649306501,0.3608,68217.0,68216.0,0.01667324]
[1730649306697,0.51556,68217.0,68215.0,0.00902782]
[1730649306903,0.073322,68216.0,68215.0,0.00902782]
[1730649307097,0.513082,68216.0,68215.0,0.00902782]
[1730649307502,0.813082,68216.0,68215.0,0.00902782]
[1730649307714,0.86253443,68216.0,68215.0,0.00902782]
[1730649308208,0.813082,68216.0,68215.0,0.00902782]
[1730649308921,0.844882,68216.0,68215.0,0.00902782]
[1730649309301,1.18174773,68216.0,68212.0,0.01010399]
[1730649309500,0.3926,68216.0,68212.0,0.00016148]
[1730649309704,0.3608,68216.0,68215.0,0.073323]
[1730649310409,0.3608,68216.0,68212.0,0.03276148]
[1730649310604,0.3608,68216.0,68212.0,0.00016148]
[1730649310804,0.3608,68216.0,68213.0,0.073325]
[1730649311215,0.3608,68216.0,68212.0,0.00016148]
[1730649312515,0.1548,68215.0,68212.0,0.00016148]
[1730649313410,0.073325,68213.0,68212.0,0.00016148]
[1730649313812,0.513125,68213.0,68212.0,0.00016148]
[1730649314507,0.76136329,68213.0,68211.0,0.02563217]
[1730649314714,0.71734386,68212.0,68211.0,0.02563217]
[1730649315617,1.01734386,68212.0,68211.0,0.02563217]
[1730649316310,0.073328,68210.0,68190.0,0.3608]
[1730649316512,0.073348,68192.0,68178.0,0.073363]
[1730649316815,0.3608,68186.0,68173.0,0.073368]
[1730649317006,0.3608,68186.0,68172.0,0.063]
[1730649317409,0.073357,68183.0,68172.0,0.063]
[1730649317618,0.3608,68186.0,68172.0,0.063]
[1730649317916,0.3608,68180.0,68172.0,0.0306]
[1730649319011,0.3608,68174.0,68173.0,0.014]
[1730649319214,0.588967,68174.0,68173.0,0.014]
[1730649319612,1.029007,68174.0,68173.0,0.014]
[1730649319917,1.029007,68174.0,68161.0,0.3608]
[1730649319918,0.073368,68173.0,68172.0,0.001]
[1730649320110,0.513408,68173.0,68172.0,0.001]
[1730649320309,0.668288,68173.0,68172.0,0.001]
[1730649321316,0.668288,68173.0,68147.0,0.36300106]
[1730649321317,0.968288,68173.0,68147.0,0.36300106]
[1730649321632,0.07339,68153.0,68147.0,0.36300106]
[1730649321820,0.15484,68152.0,68147.0,0.36300106]
[1730649322124,0.15484,68152.0,68139.0,0.434205]
[1730649322125,0.3608,68148.0,68139.0,0.00076]
[1730649322425,0.3608,68142.0,68134.0,0.0945]
[1730649323620,0.3608,68142.0,68138.0,0.073406]
[1730649323821,0.3608,68142.0,68134.0,0.0945]
[1730649324128,0.3608,68142.0,68136.0,0.073408]
[1730649324321,0.3608,68142.0,68134.0,0.1085]
[1730649324322,0.38261761,68142.0,68134.0,0.0464]
[1730649324618,0.3608,68136.0,68134.0,0.0464]
[1730649324808,0.51864,68136.0,68134.0,0.0464]
[1730649325211,0.51864,68136.0,68134.0,0.014]
[1730649325404,0.02181761,68142.0,68134.0,0.014]
[1730649325608,0.15784,68141.0,68134.0,0.014]
[1730649325811,0.15784,68141.0,68134.0,0.087409]
[1730649326115,0.15784,68141.0,68135.0,0.073409]
[1730649326309,0.15784,68141.0,68136.0,0.014]
[1730649326813,0.15784,68140.0,68136.0,0.014]
[1730649327012,0.15784,68139.0,68128.0,0.3608]
[1730649327208,0.15784,68139.0,68134.0,0.014]
[1730649328314,0.15784,68139.0,68137.0,0.073407]
[1730649329318,0.15784,68139.0,68136.0,0.014]
[1730649329523,0.15784,68139.0,68133.0,0.073411]
[1730649329815,0.15784,68139.0,68137.0,0.013]
[1730649330021,0.17964475,68139.0,68137.0,0.013]
[1730649330914,0.17964475,68139.0,68135.0,0.073408]
[1730649331120,0.17964475,68139.0,68136.0,0.014]
[1730649331509,0.02180475,68139.0,68136.0,0.014]
[1730649331714,0.15788,68138.0,68136.0,0.014]
[1730649331912,0.073387,68156.0,68148.0,0.073395]
[1730649332116,0.3608,68157.0,68154.0,0.073388]
[1730649332324,0.38192565,68157.0,68149.0,0.0314]
[1730649332509,0.38192565,68157.0,68150.0,0.0313]
[1730649332711,0.38192565,68157.0,68149.0,0.0314]
[1730649332712,0.073388,68154.0,68149.0,0.0314]
[1730649333013,0.073393,68150.0,68149.0,0.0314]
[1730649333418,0.231273,68150.0,68149.0,0.0314]
[1730649333625,0.231273,68150.0,68114.0,0.36300212]
[1730649333626,0.073404,68140.0,68114.0,0.36300212]
[1730649333920,0.3608,68138.0,68129.0,0.0314]
[1730649334127,0.15788,68137.0,68129.0,0.0314]
[1730649334318,0.15788,68137.0,68134.0,0.07341]
[1730649334520,0.15788,68137.0,68129.0,0.0314]
[1730649334521,0.15788,68137.0,68133.0,0.073411]
[1730649334712,0.15788,68137.0,68134.0,0.073409]
[1730649335123,0.15788,68137.0,68130.0,0.073414]
[1730649335428,0.15788,68137.0,68129.0,0.0314]
[1730649336323,0.073412,68133.0,68129.0,0.0314]
[1730649336725,0.15788,68137.0,68129.0,0.0314]
[1730649336927,0.073409,68135.0,68130.0,0.014]
[1730649337121,0.15792,68134.0,68130.0,0.014]
[1730649337429,0.434213,68131.0,68130.0,0.014]
[1730649338631,0.434213,68131.0,68129.0,0.0454]
[1730649339132,0.073414,68130.0,68129.0,0.014]
[1730649339434,0.434213,68131.0,68130.0,0.014]
[1730649339731,1.10112,68131.0,68101.0,0.0323]
[1730649339922,0.3608,68107.0,68101.0,0.0645]
[1730649340236,0.51872,68107.0,68101.0,0.0645]
[1730649341532,0.073444,68103.0,68101.0,0.0322]
[1730649341832,0.51968,68107.0,68101.0,0.0322]
[1730649342036,0.07344,68106.0,68101.0,0.0322]
[1730649342423,0.36176,68107.0,68101.0,0.011]
[1730649342424,0.15796,68105.0,68101.0,0.011]
[1730649342629,0.3608,68102.0,68101.0,0.011]
[1730649343032,0.434244,68102.0,68101.0,0.011]
[1730649343229,0.434244,68102.0,68090.0,0.138756]
[1730649343436,0.3608,68093.0,68090.0,0.138756]
[1730649343637,0.3608,68093.0,68092.0,0.073455]
[1730649344027,0.3608,68094.0,68090.0,0.0653]
[1730649344735,0.3608,68095.0,68090.0,0.0329]
[1730649346342,0.02182629,68102.0,68094.0,0.3608]
[1730649346527,0.3608,68108.0,68101.0,0.073446]
[1730649346733,0.00220388,68109.0,68108.0,0.073438]
[1730649347240,0.00220388,68109.0,68108.0,0.106138]
[1730649347630,0.3608,68121.0,68117.0,0.073428]
[1730649347833,0.15796,68120.0,68117.0,0.073428]
[1730649348939,0.15796,68119.0,68117.0,0.073428]
[1730649349739,0.3608,68133.0,68117.0,0.073428]
[1730649349740,0.011,68120.0,68119.0,0.073426]
[1730649349942,0.011,68120.0,68119.0,0.434226]
[1730649350639,0.15796,68129.0,68119.0,0.3608]
[1730649350831,0.00096,68133.0,68132.0,0.073412]
[1730649351031,0.02188242,68138.0,68134.0,0.07341]
[1730649351537,0.073401,68143.0,68134.0,0.07341]
[1730649352945,0.01320282,68135.0,68134.0,0.07441]
[1730649353741,0.00220282,68135.0,68134.0,0.07341]
[1730649353944,0.00520282,68135.0,68134.0,0.07341]
[1730649354637,0.073395,68148.0,68146.0,0.073397]
[1730649354843,0.073395,68148.0,68141.0,0.434202]
[1730649355031,0.073395,68148.0,68142.0,0.073401]
[1730649355235,0.07339,68153.0,68147.0,0.073395]
[1730649355440,0.073391,68152.0,68146.0,0.073396]
[1730649355649,0.073391,68152.0,68141.0,0.3608]
[1730649355650,0.15328,68153.0,68149.0,0.073393]
[1730649355946,0.3608,68154.0,68149.0,0.073393]
[1730649356339,0.3608,68154.0,68151.0,0.073391]
[1730649356743,0.012,68153.0,68151.0,0.073391]
[1730649357141,0.012,68153.0,68149.0,0.001]
[1730649357142,0.012,68153.0,68152.0,0.073391]
[1730649358148,0.07558072,68163.0,68152.0,0.4402]
[1730649358345,0.07558072,68163.0,68149.0,0.001]
[1730649358346,0.00220172,68163.0,68158.0,0.073384]
[1730649358552,0.00220172,68163.0,68156.0,0.073386]
[1730649358845,0.00220172,68163.0,68158.0,0.073384]
[1730649359350,0.00920172,68163.0,68158.0,0.073384]
[1730649360148,0.00920172,68163.0,68158.0,0.074384]
[1730649360350,0.00920172,68163.0,68158.0,0.001]
[1730649360547,0.00920172,68163.0,68162.0,0.07338]
[1730649362657,0.073383,68159.0,68158.0,0.001]
[1730649362949,0.1532,68159.0,68142.0,0.032]
[1730649363137,0.3608,68154.0,68146.0,0.073397]
[1730649363337,0.3608,68154.0,68142.0,0.032]
[1730649363338,0.1532,68159.0,68147.0,0.3608]
[1730649363850,0.1532,68159.0,68158.0,0.001]
[1730649364342,0.226583,68159.0,68158.0,0.001]
[1730649364940,0.24838523,68159.0,68158.0,0.001]
[1730649365246,0.17500223,68159.0,68158.0,0.001]
[1730649365649,0.1532,68161.0,68147.0,0.3608]
[1730649365950,0.073385,68158.0,68147.0,0.001]
[1730649366142,0.3608,68154.0,68147.0,0.074396]
[1730649366339,0.3608,68154.0,68147.0,0.001]
[1730649366543,0.3608,68154.0,68127.0,0.36300171]
[1730649366544,0.3608,68148.0,68134.0,0.3608]
[1730649366751,0.0734,68143.0,68134.0,0.3608]
[1730649366951,0.3608,68140.0,68134.0,0.3608]
[1730649367752,0.1532,68147.0,68134.0,0.3608]
[1730649368035,0.1532,68147.0,68137.0,0.073407]
[1730649368641,0.1532,68147.0,68140.0,0.073403]
[1730649369350,0.1532,68147.0,68141.0,0.073402]
[1730649369544,0.17447725,68147.0,68134.0,0.3648]
[1730649369750,0.17447725,68147.0,68134.0,0.3608]
[1730649370049,0.3608,68148.0,68144.0,0.073399]
[1730649370242,0.1532,68147.0,68146.0,0.073397]
[1730649370445,0.02095386,68148.0,68147.0,0.073396]
[1730649370651,0.3608,68148.0,68134.0,0.21873887]
[1730649370946,0.1532,68147.0,68134.0,0.006]
[1730649371340,0.073405,68139.0,68134.0,0.006]
[1730649371536,0.073401,68143.0,68134.0,0.006]
[1730649372051,0.1532,68147.0,68134.0,0.006]
[1730649372351,0.3608,68148.0,68138.0,0.073405]
[1730649372650,0.1532,68146.0,68138.0,0.073405]
[1730649373052,0.1532,68146.0,68140.0,0.073403]
[1730649373245,0.1532,68146.0,68134.0,0.001]
[1730649373551,0.3608,68148.0,68140.0,0.073403]
[1730649373746,0.3608,68155.0,68147.0,0.073396]
[1730649373747,0.434188,68155.0,68147.0,0.073396]
[1730649373955,0.1532,68152.0,68134.0,0.301]
[1730649374141,0.1532,68152.0,68135.0,0.073408]
[1730649374342,0.3608,68155.0,68140.0,0.3608]
[1730649374655,0.1532,68154.0,68151.0,0.073392]
[1730649374859,0.38214808,68155.0,68152.0,0.07339]
[1730649375046,0.38214808,68155.0,68151.0,0.073391]
[1730649375446,0.38214808,68155.0,68152.0,0.07339]
[1730649376145,0.38214808,68155.0,68152.0,0.07439]
[1730649376351,0.3608,68155.0,68152.0,0.07439]
[1730649376756,0.2608,68155.0,68152.0,0.07439]
[1730649377341,0.2608,68155.0,68152.0,0.001]
[1730649378348,0.2608,68155.0,68152.0,0.074391]
[1730649378553,0.02174009,68156.0,68152.0,0.074391]
[1730649378749,0.435145,68158.0,68152.0,0.074391]
[1730649378950,0.434185,68158.0,68152.0,0.074391]
[1730649379745,0.434185,68158.0,68147.0,0.3119]
[1730649379746,0.3608,68158.0,68147.0,0.3119]
[1730649380056,0.3608,68158.0,68123.0,0.0318]
[1730649380057,0.3608,68148.0,68123.0,0.0318]
[1730649380244,0.073413,68131.0,68123.0,0.0318]
[1730649380448,0.1532,68133.0,68128.0,0.073416]
[1730649380759,0.07560462,68141.0,68128.0,0.073416]
[1730649380760,0.073406,68138.0,68128.0,0.073416]
[1730649380950,0.1532,68137.0,68128.0,0.073416]
[1730649381145,0.1532,68137.0,68123.0,0.0318]
[1730649381363,0.00220262,68141.0,68129.0,0.3608]
[1730649381668,0.1532,68140.0,68132.0,0.073411]
[1730649382058,0.226605,68140.0,68132.0,0.073411]
[1730649382359,0.226605,68140.0,68129.0,0.3608]
[1730649382360,0.073406,68138.0,68129.0,0.3608]
[1730649383156,0.222086,68138.0,68129.0,0.3608]
[1730649383851,0.222086,68138.0,68129.0,0.3618]
[1730649383852,0.15468,68138.0,68129.0,0.3618]
[1730649384053,0.15468,68138.0,68129.0,0.435215]
[1730649385163,0.15468,68138.0,68129.0,0.3618]
[1730649385458,0.073408,68136.0,68131.0,0.073412]
[1730649386562,0.07343,68115.0,68094.0,0.0307]
[1730649386764,0.3608,68102.0,68094.0,0.0307]
[1730649387072,0.073441,68105.0,68097.0,0.3608]
[1730649387359,0.3608,68133.0,68109.0,0.073437]
[1730649387556,0.07560562,68141.0,68111.0,0.3608]
[1730649387557,0.073433,68113.0,68111.0,0.3608]
[1730649387862,0.07343,68116.0,68111.0,0.3608]
[1730649388061,0.14868,68117.0,68111.0,0.3608]
[1730649388261,0.073433,68113.0,68111.0,0.3608]
[1730649388663,0.17044917,68117.0,68111.0,0.3608]
[1730649388963,0.073436,68110.0,68102.0,0.073444]
[1730649389176,0.3608,68115.0,68109.0,0.001]
[1730649389460,0.073436,68110.0,68109.0,0.001]
[1730649389863,0.073436,68110.0,68096.0,0.3608]
[1730649389864,0.073447,68101.0,68096.0,0.3608]
[1730649390064,0.073452,68095.0,68094.0,0.0307]
[1730649390263,0.3608,68099.0,68094.0,0.0307]
[1730649390964,0.073443,68104.0,68099.0,0.073447]
[1730649391562,0.3608,68110.0,68096.0,0.3608]
[1730649391870,0.3608,68110.0,68096.0,0.6608]
[1730649392065,0.073426,68120.0,68114.0,0.073431]
[1730649392272,0.14872,68122.0,68115.0,0.0303]
[1730649392455,0.073429,68116.0,68115.0,0.0303]
[1730649394066,0.077429,68116.0,68115.0,0.0303]
[1730649394564,0.004,68116.0,68101.0,0.3608]
[1730649394770,0.004,68116.0,68102.0,0.0303]
[1730649395067,0.3608,68111.0,68102.0,0.0303]
[1730649395659,0.073436,68110.0,68103.0,0.073443]
[1730649395859,0.073439,68107.0,68102.0,0.0303]
[1730649396066,0.073442,68104.0,68102.0,0.0303]
[1730649396469,0.073439,68107.0,68102.0,0.0303]
[1730649396765,0.3608,68111.0,68102.0,0.0303]
[1730649396961,0.14872,68108.0,68105.0,0.073441]
[1730649397367,0.3608,68111.0,68105.0,0.073441]
[1730649397681,0.001,68110.0,68103.0,0.014]
[1730649398466,0.073439,68107.0,68103.0,0.014]
[1730649399372,0.07344,68106.0,68105.0,0.014]
[1730649400663,0.3608,68111.0,68102.0,0.0303]
[1730649400664,0.073443,68103.0,68102.0,0.0303]
[1730649401173,0.073444,68102.0,68101.0,0.3608]
[1730649402061,0.073453,68094.0,68091.0,0.0318]
[1730649402273,0.222213,68094.0,68091.0,0.0318]
[1730649403571,0.223213,68094.0,68093.0,0.01620279]
[1730649405168,0.001,68094.0,68093.0,0.01620279]
[1730649405363,0.14876,68097.0,68093.0,0.01620279]
[1730649405573,0.14876,68105.0,68102.0,0.073444]
[1730649405773,0.14876,68105.0,68102.0,0.434244]
[1730649405978,0.38211132,68109.0,68102.0,0.434244]
[1730649406179,0.14876,68108.0,68102.0,0.434244]
[1730649406778,0.14876,68108.0,68102.0,0.073444]
[1730649407164,0.073439,68107.0,68102.0,0.073444]
[1730649407565,0.14876,68108.0,68104.0,0.073442]
[1730649408772,0.45554932,68109.0,68104.0,0.073442]
[1730649409174,0.3608,68109.0,68102.0,0.003]
[1730649409384,0.02113126,68115.0,68103.0,0.3608]
[1730649409572,0.073434,68112.0,68107.0,0.073439]
[1730649410276,0.073436,68110.0,68104.0,0.003]
[1730649410579,0.073436,68110.0,68105.0,0.073441]
[1730649410779,0.073437,68109.0,68105.0,0.073441]
[1730649411274,0.073437,68109.0,68103.0,0.3608]
[1730649411471,0.073442,68105.0,68103.0,0.3608]
[1730649411672,0.3608,68109.0,68103.0,0.3608]
[1730649411871,0.073439,68108.0,68103.0,0.3608]
[1730649412271,0.073439,68108.0,68104.0,0.014]
[1730649412678,0.38413879,68116.0,68105.0,0.44048]
[1730649412679,0.00220327,68116.0,68105.0,0.44048]
[1730649412864,0.00220327,68116.0,68115.0,0.07343]
[1730649413779,0.073433,68113.0,68112.0,0.0318]
[1730649416177,0.1468,68114.0,68112.0,0.0318]
[1730649416373,0.003,68113.0,68112.0,0.0318]
[1730649417074,0.006,68113.0,68112.0,0.0318]
[1730649418277,0.1468,68121.0,68116.0,0.073429]
[1730649419186,0.073424,68121.0,68116.0,0.073429]
[1730649420067,0.003,68121.0,68113.0,0.0302]
[1730649420272,0.003,68121.0,68117.0,0.073427]
[1730649420872,0.076424,68121.0,68113.0,0.0302]
[1730649421074,0.073425,68120.0,68113.0,0.0302]
[1730649421281,0.003,68121.0,68120.0,0.073425]
[1730649421581,0.3608,68122.0,68121.0,0.073424]
[1730649422186,0.434223,68122.0,68113.0,0.0302]
[1730649422490,0.002,68121.0,68120.0,0.073425]
[1730649422780,0.002,68121.0,68113.0,0.0302]
[1730649423180,0.3608,68122.0,68118.0,0.073426]
[1730649423373,0.3608,68122.0,68119.0,0.073425]
[1730649423576,0.3608,68122.0,68113.0,0.0302]
[1730649423776,0.07341,68134.0,68130.0,0.073414]